bitfinex/quotes_ETHUSD_20251201
["timestamp","ask_amount","ask_price","bid_price","bid_amount"]
[1764601972287,3.77995808,2816.3,2816.2,0.9164]
[1764601973405,3.77995808,2816.3,2816.2,0.4566]
[1764601973796,3.77995808,2816.3,2816.2,0.9164]
[1764601974794,0.0012,2816.3,2816.2,0.9164]
[1764601975093,0.0012,2816.3,2816.2,4.46728417]
[1764601975297,0.0012,2816.3,2816.2,5.61444186]
[1764601976096,0.0012,2816.3,2816.2,8.88444186]
[1764601978994,0.002,2816.6,2816.2,8.88444186]
[1764601978995,0.002,2816.6,2816.3,1.13109811]
[1764601979198,0.002,2816.6,2816.5,0.4566]
[1764601979395,0.002,2816.6,2816.5,0.9157904]
[1764601979571,0.002,2816.6,2816.5,1.3755904]
[1764601980295,0.002,2816.9,2816.5,5.77668851]
[1764601980496,0.002,2816.9,2816.8,0.896204]
[1764601980800,0.002,2816.9,2816.8,0.9827]
[1764601980979,0.002,2816.9,2816.8,5.03065721]
[1764601981297,0.002,2816.9,2816.8,0.98852941]
[1764601981491,0.002,2816.9,2816.8,1.48052941]
[1764601981997,0.002,2816.9,2816.8,5.03065721]
[1764601983407,0.002,2816.9,2816.7,3.27]
[1764601983765,0.002,2816.9,2816.8,0.4907]
[1764601984286,0.002,2816.9,2816.8,0.9827]
[1764601984797,0.002,2816.9,2816.8,4.5328278]
[1764601985004,0.002,2816.9,2816.8,10.29623407]
[1764601985306,0.002,2817.2,2816.9,2.11379811]
[1764601985492,0.002,2817.2,2817.1,1.087004]
[1764601985886,0.002,2817.2,2817.1,1.579004]
[1764601986799,0.002,2817.2,2817.1,5.12875374]
[1764601986999,0.002,2818.7,2817.1,5.12875374]
[1764601987000,0.002,2818.7,2817.5,0.896204]
[1764601987202,0.002,2818.7,2818.6,0.6815]
[1764601987402,0.002,2818.7,2818.6,0.4907]
[1764601987702,0.002,2818.7,2818.3,0.1908]
[1764601987881,0.002,2818.7,2818.6,0.4907]
[1764601988289,0.002,2818.7,2817.9,0.1908]
[1764601988600,0.002,2818.7,2818.0,0.492]
[1764601989013,0.002,2818.7,2818.6,0.4907]
[1764601989180,0.002,2818.7,2818.6,0.9827]
[1764601989385,0.002,2818.7,2818.6,1.388204]
[1764601989701,0.002,2818.7,2818.6,0.9827]
[1764601990676,0.002,2818.7,2818.6,0.4907]
[1764601990901,0.002,2818.7,2817.9,4.23154197]
[1764601990902,0.4656,2818.7,2817.9,4.23154197]
[1764601991102,0.4656,2818.7,2817.9,4.23154031]
[1764601991103,7.56126196,2818.7,2817.9,4.23154031]
[1764601991400,7.56126196,2818.7,2817.9,4.23152159]
[1764601991603,0.4752,2818.6,2817.6,0.719]
[1764601991914,0.8036462,2818.5,2817.6,0.1908]
[1764601992202,0.227,2818.4,2817.3,0.492]
[1764601992507,0.7022,2818.4,2817.3,0.492]
[1764601992709,0.405504,2818.3,2817.1,0.1908]
[1764601992896,0.72559411,2818.1,2817.1,0.1908]
[1764601993210,1.13706867,2818.0,2816.7,0.1908]
[1764601993380,1.61226867,2818.0,2816.7,0.6828]
[1764601993702,0.6557,2817.9,2816.7,4.23305384]
[1764601993908,0.227,2817.8,2816.8,0.492]
[1764601994111,0.7022,2817.8,2816.9,0.77833077]
[1764601994608,0.7022,2817.8,2816.9,1.27033077]
[1764601994807,0.4752,2817.8,2816.9,1.27033077]
[1764601994992,0.227,2817.7,2817.1,3.54974974]
[1764601995192,3.77525411,2817.7,2817.1,4.38673761]
[1764601995396,0.2262,2817.7,2817.2,0.1908]
[1764601995708,3.77525725,2817.7,2817.0,4.04185633]
[1764601995899,1.20079411,2817.6,2816.7,3.74105027]
[1764601996412,1.20079411,2817.6,2816.7,4.23305027]
[1764601996599,1.20079411,2817.6,2816.7,7.78330411]
[1764601996909,0.227,2818.0,2816.9,7.10000354]
[1764601997203,3.54874197,2817.9,2817.0,0.492]
[1764601997410,3.54874197,2817.9,2817.1,0.40420018]
[1764601997604,3.54874197,2817.9,2817.1,0.59500018]
[1764601997911,3.54874197,2817.9,2817.1,1.08700018]
[1764601998713,0.4752,2817.8,2816.9,3.55000177]
[1764601998887,7.09798772,2817.7,2816.9,4.04200177]
[1764601999087,7.09798772,2817.7,2816.7,3.74100779]
[1764601999409,7.09798772,2817.7,2816.7,0.1908]
[1764601999410,0.4752,2817.6,2816.7,0.1908]
[1764601999608,0.227,2817.5,2816.7,0.1908]
[1764601999925,0.227,2817.5,2816.1,4.22730891]
[1764602000226,0.1251,2816.8,2816.1,0.6838]
[1764602000518,0.227,2816.7,2816.2,0.492]
[1764602000729,0.4752,2817.4,2816.2,0.492]
[1764602000968,0.227,2817.3,2816.6,0.4907]
[1764602001210,0.227,2817.2,2816.7,3.55025384]
[1764602001413,0.227,2817.2,2816.8,0.75913286]
[1764602001710,0.227,2817.2,2816.6,0.9827]
[1764602001711,0.227,2817.2,2816.6,0.4907]
[1764602001929,0.4636,2816.7,2816.1,0.1918]
[1764602002615,0.6906,2816.7,2816.1,0.1918]
[1764602002821,0.227,2816.7,2816.6,0.001]
[1764602003514,4.71605384,2816.7,2816.6,0.001]
[1764602003877,5.54267254,2816.7,2816.6,0.001]
[1764602004732,4.71605384,2816.7,2816.6,0.001]
[1764602005494,1.1658,2816.7,2816.6,0.001]
[1764602005697,4.71605384,2816.7,2816.6,0.001]
[1764602005909,5.44164795,2816.7,2816.6,0.001]
[1764602007784,0.002,2817.6,2816.6,0.4917]
[1764602008008,1.20079411,2817.4,2816.7,0.4907]
[1764602008314,2.4085391,2817.4,2816.6,0.001]
[1764602008526,0.4603,2817.4,2816.6,0.001]
[1764602008738,0.6873,2817.3,2816.6,0.001]
[1764602009217,7.09924746,2817.2,2816.6,0.001]
[1764602009424,7.55954746,2817.2,2816.6,0.001]
[1764602009607,7.09924746,2817.2,2816.6,0.35625589]
[1764602009928,7.55954746,2817.2,2816.6,0.35625589]
[1764602010431,0.72559411,2817.2,2816.6,0.35625589]
[1764602011003,1.19369411,2817.2,2816.6,0.001]
[1764602011523,7.5673537,2817.2,2816.6,0.001]
[1764602011725,4.01772685,2817.2,2816.6,0.001]
[1764602012127,7.5673537,2817.2,2816.6,0.001]
[1764602013244,4.01772685,2817.2,2816.6,0.001]
[1764602013408,0.95259411,2817.3,2816.7,0.7888]
[1764602013738,0.72559411,2817.2,2816.7,0.7888]
[1764602014034,0.72559411,2817.2,2816.7,0.3271]
[1764602014911,0.95259411,2817.3,2816.8,0.4617]
[1764602015122,0.227,2817.2,2816.8,0.4617]
[1764602015432,0.227,2817.2,2816.6,0.001]
[1764602015433,0.5992,2816.9,2816.6,0.001]
[1764602015637,0.227,2816.8,2816.6,0.001]
[1764602015834,0.227,2817.0,2816.7,0.9264]
[1764602016134,0.227,2817.0,2816.6,0.001]
[1764602016635,0.6951,2817.0,2816.6,0.001]
[1764602017225,11.3740174,2817.4,2816.6,0.001]
[1764602017226,0.227,2816.9,2816.6,0.4627]
[1764602017811,3.54954621,2817.3,2816.8,0.4647]
[1764602018006,0.227,2817.2,2816.8,0.4647]
[1764602018211,0.2262,2817.2,2816.8,0.4647]
[1764602018851,0.002,2817.6,2817.1,0.6514]
[1764602019012,0.002,2817.6,2817.5,0.4647]
[1764602019417,0.002,2817.6,2817.5,0.9264]
[1764602019819,0.002,2817.6,2817.5,4.47564578]
[1764602020018,0.002,2817.6,2817.5,5.27814674]
[1764602022214,0.002,2817.6,2817.5,1.72890096]
[1764602022414,0.002,2817.6,2817.5,0.9264]
[1764602022614,0.002,2817.6,2817.5,4.47564578]
[1764602024773,0.002,2817.6,2817.5,0.4647]
[1764602025567,0.002,2817.6,2817.2,7.56094746]
[1764602025779,0.002,2817.6,2817.1,3.73638548]
[1764602025942,0.4701,2817.6,2817.1,0.1867]
[1764602026142,0.002,2817.6,2817.1,7.28614079]
[1764602026347,0.002,2817.6,2817.2,0.72861408]
[1764602027082,0.002,2817.6,2817.5,0.4647]
[1764602027457,0.002,2817.6,2817.5,0.9264]
[1764602028049,0.002,2817.6,2817.5,4.47564578]
[1764602029448,0.002,2817.6,2817.5,4.01394578]
[1764602029648,0.002,2817.6,2817.5,1.54803063]
[1764602029863,0.002,2817.6,2817.5,0.4647]
[1764602030149,0.002,2817.6,2817.5,4.01394578]
[1764602031161,0.002,2817.6,2817.5,0.4647]
[1764602031365,0.4619,2817.6,2817.3,3.27]
[1764602031565,0.4619,2817.6,2817.3,6.81944432]
[1764602032560,0.93,2817.6,2817.3,6.8194704]
[1764602032884,0.93,2817.6,2817.3,3.5494704]
[1764602033085,0.002,2817.6,2817.3,3.5494704]
[1764602033258,0.002,2817.6,2817.3,7.09896814]
[1764602033458,0.002,2817.6,2817.5,0.4647]
[1764602034187,0.002,2817.6,2817.5,0.9264]
[1764602034188,0.229,2817.6,2817.5,0.9264]
[1764602034585,0.229,2817.6,2817.3,7.82753495]
[1764602034586,0.229,2817.6,2817.3,0.72856681]
[1764602034797,0.002,2817.6,2817.4,7.09874352]
[1764602035090,0.002,2817.6,2817.1,0.1867]
[1764602035264,0.002,2817.6,2817.1,3.73644317]
[1764602035468,0.4681,2817.5,2817.0,3.54980523]
[1764602035691,0.4599,2817.1,2816.8,0.44777478]
[1764602035885,0.6869,2817.1,2816.9,0.72679356]
[1764602036185,0.227,2817.1,2817.0,0.4647]
[1764602036384,0.227,2817.1,2817.0,3.7347]
[1764602036883,0.227,2817.1,2817.0,6.81987575]
[1764602037587,1.155,2817.1,2817.0,3.27]
[1764602038491,0.6869,2817.1,2817.0,3.27]
[1764602039581,1.155,2817.1,2817.0,3.27]
[1764602040303,5.17520796,2817.1,2816.9,0.001]
[1764602040599,0.8144,2817.0,2816.9,0.001]
[1764602040802,4.36427575,2817.0,2816.9,0.001]
[1764602041001,0.8144,2817.0,2816.9,0.001]
[1764602041181,0.8136,2817.0,2816.9,0.001]
[1764602041387,4.36347575,2817.0,2816.9,0.001]
[1764602041880,5.29841744,2817.0,2816.9,0.001]
[1764602042079,5.52541744,2817.0,2816.9,0.001]
[1764602043190,9.67392144,2817.0,2816.9,0.001]
[1764602043380,0.6582,2816.5,2816.1,0.001]
[1764602043573,0.1194,2816.2,2816.1,0.001]
[1764602043987,0.5813,2816.2,2816.1,0.001]
[1764602044810,5.08477828,2816.2,2816.1,0.001]
[1764602045011,5.94833285,2816.2,2816.1,0.001]
[1764602045211,2.39744868,2816.2,2816.1,0.001]
[1764602045398,0.84499411,2816.2,2816.1,0.001]
[1764602045587,1.07199411,2816.2,2816.1,0.001]
[1764602045787,4.62287828,2816.2,2816.1,0.001]
[1764602046214,1.07199411,2816.2,2816.1,0.001]
[1764602046526,5.08477828,2816.2,2816.1,0.001]
[1764602046829,5.94832341,2816.2,2816.1,0.001]
[1764602047138,5.08477828,2816.2,2816.1,0.001]
[1764602048996,5.08477828,2816.2,2815.3,0.001]
[1764602048997,0.4592,2815.9,2815.3,0.001]
[1764602049201,1.18749411,2816.1,2815.3,0.001]
[1764602049202,0.513404,2815.7,2815.3,0.001]
[1764602049621,0.4547,2815.4,2815.3,0.001]
[1764602049846,0.6817,2815.4,2815.3,0.001]
[1764602050032,1.1436,2815.4,2815.3,0.001]
[1764602051043,1.18029411,2815.4,2815.3,0.001]
[1764602051241,1.40729411,2815.4,2815.3,0.001]
[1764602051542,5.42108726,2815.4,2815.3,0.001]
[1764602051709,6.31838241,2815.4,2815.3,0.001]
[1764602052535,6.31838241,2815.4,2813.7,0.1867]
[1764602052536,1.13109811,2815.3,2813.7,0.1867]
[1764602052710,1.59299811,2815.3,2813.7,0.1867]
[1764602052910,10.65719358,2815.0,2813.8,3.55391285]
[1764602053111,2.05886387,2814.9,2813.8,4.32972711]
[1764602053344,2.05886387,2814.9,2813.8,0.4634]
[1764602053345,0.227,2814.8,2813.8,0.4634]
[1764602053670,0.6889,2814.8,2813.8,0.4634]
[1764602054241,0.227,2814.7,2813.8,0.4634]
[1764602054450,0.91433639,2814.7,2813.8,0.88381287]
[1764602055141,0.68733639,2814.7,2813.9,3.55378655]
[1764602055365,0.95259411,2814.6,2813.9,0.4634]
[1764602056032,3.55280109,2814.7,2813.9,0.4634]
[1764602056033,8.02623997,2814.9,2814.5,0.4582]
[1764602056230,0.227,2814.8,2814.5,0.4582]
[1764602056433,0.227,2814.8,2814.4,0.1905]
[1764602056739,1.052324,2814.8,2814.4,0.1905]
[1764602057140,0.72559411,2814.6,2814.1,0.1905]
[1764602057364,0.227,2814.5,2814.1,0.1905]
[1764602057550,0.227,2814.4,2814.1,0.6539]
[1764602057756,3.74805851,2814.9,2814.1,0.6539]
[1764602057950,0.1955,2814.9,2814.3,0.4582]
[1764602058152,0.227,2814.8,2814.3,0.4582]
[1764602058564,0.227,2814.8,2814.3,0.9216]
[1764602058859,0.227,2814.8,2814.3,0.4582]
[1764602059371,0.4858,2814.4,2813.8,0.001]
[1764602059573,0.227,2814.3,2813.8,0.001]
[1764602059774,0.227,2814.3,2813.8,3.55489161]
[1764602059980,0.227,2814.3,2813.8,0.4644]
[1764602060275,0.227,2814.3,2813.9,0.4634]
[1764602061249,7.10681542,2814.2,2813.8,0.001]
[1764602061490,0.4858,2813.9,2813.8,0.001]
[1764602061788,0.227,2813.9,2813.8,0.001]
[1764602062476,0.227,2813.9,2813.8,0.4592]
[1764602063107,0.227,2813.9,2813.8,0.9226]
[1764602063396,3.55360184,2814.1,2813.8,0.9226]
[1764602063548,0.227,2813.9,2813.8,0.4592]
[1764602063744,0.227,2813.9,2813.8,0.001]
[1764602063944,3.55360184,2814.1,2813.8,0.4592]
[1764602064192,0.82930471,2814.5,2814.0,0.4582]
[1764602064375,0.227,2814.4,2814.1,0.4582]
[1764602064563,0.227,2814.3,2814.1,0.4582]
[1764602064749,0.227,2814.3,2813.8,3.55490006]
[1764602065067,0.4619,2814.6,2813.8,3.55490006]
[1764602065068,0.72559411,2814.7,2814.2,0.6487]
[1764602065269,0.227,2814.6,2814.2,0.6487]
[1764602065646,0.72559411,2814.8,2814.3,0.4634]
[1764602065852,0.4619,2815.2,2814.5,0.4582]
[1764602066085,0.1955,2815.3,2814.5,0.4582]
[1764602066377,0.227,2815.2,2814.5,0.9216]
[1764602066581,0.95259411,2815.2,2814.5,0.9216]
[1764602066983,0.4619,2815.1,2814.2,0.6539]
[1764602067156,0.4619,2815.1,2814.3,0.42073389]
[1764602067684,8.29210539,2815.1,2814.3,4.43730865]
[1764602067896,8.29210539,2815.1,2814.3,7.9905901]
[1764602067897,4.27789975,2815.1,2814.3,7.9905901]
[1764602068183,0.227,2815.0,2814.4,1.28150901]
[1764602068483,0.227,2815.0,2814.4,0.81810901]
[1764602068705,0.227,2815.0,2814.3,3.5532551]
[1764602068908,0.227,2815.0,2814.2,3.74385768]
[1764602069211,0.227,2815.0,2814.2,3.7438915]
[1764602069385,0.227,2815.0,2814.2,7.76069921]
[1764602069590,3.55252406,2814.9,2814.3,0.4634]
[1764602069811,3.55252406,2814.9,2814.4,0.77606992]
[1764602070312,3.55252406,2814.9,2814.4,1.23356992]
[1764602070903,3.55252406,2814.9,2814.4,0.77606992]
[1764602071102,3.55252406,2814.9,2814.5,0.4575]
[1764602071277,0.227,2815.0,2814.8,0.4661]
[1764602071683,0.72559411,2814.9,2814.8,0.4661]
[1764602071909,0.95259411,2814.9,2814.8,0.4661]
[1764602072103,0.95259411,2814.9,2814.5,0.4575]
[1764602072480,0.95259411,2814.9,2814.2,4.20140275]
[1764602072814,0.227,2814.8,2814.3,0.77549157]
[1764602073579,0.227,2814.8,2814.2,0.1905]
[1764602074011,3.77976233,2814.8,2814.2,4.24149591]
[1764602074507,0.227,2814.8,2814.2,7.79490362]
[1764602074812,0.227,2814.8,2814.3,0.4976]
[1764602075314,0.227,2814.8,2814.7,0.4885]
[1764602075808,3.77965027,2814.8,2814.3,0.4976]
[1764602076179,7.33230054,2814.8,2814.3,0.4976]
[1764602076609,8.13809,2814.8,2814.2,0.1905]
[1764602076990,7.33230054,2814.8,2814.2,0.1905]
[1764602077320,0.72559411,2814.7,2813.9,3.55378655]
[1764602077519,0.72559411,2814.7,2813.8,4.05247943]
[1764602077520,1.17879411,2814.7,2813.8,0.001]
[1764602077817,0.4532,2814.6,2813.9,0.4976]
[1764602077994,3.55290272,2814.6,2813.9,0.4976]
[1764602078315,7.10580544,2814.6,2813.9,4.05138253]
[1764602079212,7.10580544,2814.6,2813.9,0.4976]
[1764602079418,0.4583,2814.0,2813.8,0.001]
[1764602079591,0.227,2813.9,2813.8,0.001]
[1764602079791,0.4532,2814.4,2813.8,0.001]
[1764602080113,7.10681542,2814.2,2813.8,0.001]
[1764602080303,0.72559411,2814.1,2813.8,0.001]
[1764602080502,0.227,2814.0,2813.8,0.001]
[1764602080887,0.6477,2813.9,2813.8,0.001]
[1764602081089,0.227,2814.0,2813.8,0.001]
[1764602081494,0.4583,2813.9,2813.8,0.001]
[1764602081693,0.23738957,2814.0,2813.8,0.001]
[1764602081993,0.6853,2813.9,2813.8,0.001]
[1764602082195,1.18389411,2813.9,2813.8,0.001]
[1764602082394,0.95259411,2813.9,2813.8,0.4895]
[1764602082589,4.50638066,2813.9,2813.8,0.4895]
[1764602083426,5.79441151,2813.9,2813.8,0.001]
[1764602084030,5.79441151,2813.9,2813.8,0.9871]
[1764602084031,1.05673085,2813.9,2813.8,0.9871]
[1764602084335,0.72559411,2814.3,2813.8,0.9871]
[1764602084336,0.72559411,2815.1,2813.8,4.54100807]
[1764602084495,0.4532,2814.8,2813.9,0.9861]
[1764602084698,0.4532,2814.8,2813.9,0.4885]
[1764602084699,0.227,2814.7,2813.9,0.4885]
[1764602084921,0.227,2814.7,2814.0,0.4976]
[1764602085435,0.227,2814.6,2814.1,0.1822]
[1764602085835,0.72559411,2815.0,2814.1,0.6798]
[1764602085836,0.227,2814.5,2814.1,0.6798]
[1764602086295,0.227,2814.5,2814.1,3.73570735]
[1764602086495,0.227,2814.5,2814.1,4.23330735]
[1764602086696,3.7800375,2814.5,2814.1,0.1822]
[1764602087299,0.2262,2814.5,2814.4,0.4885]
[1764602087496,0.227,2814.5,2814.4,0.4885]
[1764602087909,0.227,2814.5,2814.1,3.73573078]
[1764602088123,0.227,2814.5,2814.1,4.23333078]
[1764602088329,0.227,2814.5,2814.1,5.01203891]
[1764602088526,0.72559411,2814.7,2814.1,1.45850813]
[1764602088733,0.227,2814.4,2814.1,0.1822]
[1764602089431,0.227,2814.4,2814.0,3.55364857]
[1764602089603,0.227,2814.4,2813.8,4.05250709]
[1764602089604,0.227,2814.4,2813.9,3.55378216]
[1764602089803,0.227,2814.4,2813.9,4.05138216]
[1764602090026,0.227,2814.4,2814.0,0.90283822]
[1764602090327,3.780173,2814.4,2814.0,0.90283822]
[1764602090707,3.780173,2814.4,2814.0,0.40523822]
[1764602091099,0.227,2814.4,2814.0,0.40523822]
[1764602091311,0.227,2814.4,2814.0,4.45648508]
[1764602091510,0.227,2814.4,2814.1,0.98322391]
[1764602091831,0.227,2814.4,2814.1,1.48082391]
[1764602092034,0.227,2814.4,2813.9,3.55375401]
[1764602092035,0.227,2814.4,2810.7,9.34768552]
[1764602092036,0.131,2811.9,2810.7,9.34768552]
[1764602092343,0.131,2811.9,2807.9,6.31]
[1764602092344,0.131,2809.9,2808.0,10.20753518]
[1764602092549,0.131,2809.9,2808.0,1.02075352]
[1764602092550,0.042,2808.1,2808.0,1.02075352]
[1764602092709,0.042,2808.1,2807.1,0.1822]
[1764602092907,0.7586,2808.0,2807.2,0.165]
[1764602093135,0.405504,2807.8,2806.1,0.1822]
[1764602093338,0.405504,2807.8,2806.1,0.679]
[1764602093339,0.405504,2807.6,2806.1,0.679]
[1764602093638,0.405504,2806.9,2804.1,30.0]
[1764602093846,0.09969542,2806.7,2804.1,39.57946865]
[1764602094029,0.7586,2806.8,2804.3,2.234891]
[1764602094030,0.09969542,2806.5,2804.3,2.234891]
[1764602094231,0.85829542,2806.4,2804.6,9.57946865]
[1764602094431,12.64333349,2805.3,2804.7,10.93233113]
[1764602094731,12.64333349,2805.3,2804.0,3.7485338]
[1764602094732,7.40193349,2805.3,2804.1,3.56620662]
[1764602095049,9.94331866,2804.4,2804.1,9.57946865]
[1764602095342,9.94331866,2804.4,2804.2,0.236]
[1764602095642,9.94331866,2804.4,2804.3,0.236]
[1764602095643,11.98215382,2804.4,2804.3,0.236]
[1764602096148,11.98215382,2804.4,2803.5,3.56687764]
[1764602096149,11.98215382,2804.4,2802.6,0.1181]
[1764602096441,11.98215382,2804.4,2802.9,0.4184]
[1764602096442,0.03336705,2803.9,2802.9,0.4184]
[1764602096637,0.03336705,2803.9,2802.6,0.5365]
[1764602096638,0.237,2803.8,2802.6,0.5365]
[1764602096940,7.99670086,2802.7,2802.6,10.33017532]
[1764602097142,15.17200018,2805.0,2802.7,23.026481]
[1764602097441,2.45222206,2803.9,2803.8,9.57946865]
[1764602097741,2.45222206,2804.1,2803.8,9.81746865]
[1764602097944,2.45222206,2804.4,2804.1,0.72559411]
[1764602098120,2.45222206,2804.8,2804.6,10.30506276]
[1764602098441,0.03336705,2805.4,2804.6,1.03050628]
[1764602098642,1.25766106,2805.4,2803.9,0.0911]
[1764602098866,0.03336705,2805.5,2805.4,0.0911]
[1764602099068,0.03336705,2805.5,2804.0,10.93790549]
[1764602099069,0.03336705,2805.2,2804.2,0.239]
[1764602099269,0.03336705,2805.1,2804.3,0.4172]
[1764602099846,0.03336705,2805.7,2804.3,0.4172]
[1764602100063,0.03336705,2805.0,2803.9,0.0911]
[1764602100369,0.03336705,2805.3,2804.1,9.30195562]
[1764602100574,0.03336705,2804.9,2804.1,0.72559411]
[1764602100769,0.03336705,2805.5,2804.3,0.72559411]
[1764602100938,0.03336705,2806.0,2804.8,0.72559411]
[1764602101138,0.03336705,2805.9,2804.9,0.239]
[1764602101469,0.03336705,2805.4,2804.9,0.6562]
[1764602101671,0.03336705,2805.4,2804.9,0.239]
[1764602101839,0.03336705,2805.8,2805.0,0.3672]
[1764602102045,0.4837,2806.6,2805.0,0.3672]
[1764602102046,0.03336705,2806.3,2805.0,0.3672]
[1764602102245,0.03336705,2805.6,2804.9,0.239]
[1764602102481,0.03336705,2805.6,2805.0,0.72559411]
[1764602102663,0.03336705,2805.6,2805.1,0.239]
[1764602102842,0.03336705,2805.4,2805.1,0.239]
[1764602103862,0.03336705,2805.4,2805.2,0.3672]
[1764602104176,0.03336705,2805.8,2805.2,0.3672]
[1764602104344,1.46329401,2806.7,2805.3,3.56468113]
[1764602104345,0.03336705,2806.3,2805.3,3.56468113]
[1764602104545,0.03336705,2806.3,2805.2,0.3672]
[1764602104546,4.28877393,2806.5,2805.4,0.39318811]
[1764602104741,1.20929411,2806.6,2805.2,3.93200252]
[1764602104742,0.03336705,2806.1,2805.2,3.93200252]
[1764602104980,0.1894,2807.2,2805.3,10.09564973]
[1764602105273,0.1894,2807.2,2805.3,10.46284973]
[1764602105274,0.03336705,2806.4,2805.3,10.46284973]
[1764602105472,0.03336705,2805.8,2805.4,0.91893358]
[1764602105673,0.03336705,2805.8,2805.5,0.24]
[1764602105979,0.03336705,2806.1,2805.5,0.6072]
[1764602106368,0.03336705,2806.6,2805.7,7.12834586]
[1764602106687,0.03336705,2806.7,2805.8,0.74955459]
[1764602106867,1.45528694,2806.9,2805.8,0.74955459]
[1764602107063,0.03336705,2806.4,2805.8,0.74955459]
[1764602107264,1.45528694,2806.9,2805.8,0.74955459]
[1764602107265,0.03336705,2806.2,2805.9,0.24]
[1764602107588,0.03336705,2807.4,2806.8,0.1169]
[1764602107885,0.03336705,2807.5,2806.9,0.24]
[1764602108181,0.03336705,2807.1,2806.9,0.24]
[1764602108382,0.03336705,2807.1,2806.9,0.15671356]
[1764602108595,0.03336705,2807.1,2806.9,0.24]
[1764602108786,0.03336705,2806.8,2806.2,0.1169]
[1764602108976,0.03336705,2806.6,2806.5,0.24]
[1764602109376,0.03336705,2807.0,2806.5,0.24]
[1764602109578,0.03336705,2807.1,2806.5,0.6072]
[1764602109876,0.76359757,2807.6,2806.6,0.405504]
[1764602110076,0.03336705,2807.5,2806.6,0.772704]
[1764602110256,0.03256705,2807.4,2806.6,0.772704]
[1764602110457,0.03256705,2807.6,2806.8,0.72559411]
[1764602110687,0.03256705,2807.4,2806.9,0.78514002]
[1764602110888,0.03256705,2807.4,2807.0,0.24]
[1764602111185,0.03256705,2807.1,2807.0,0.239]
[1764602112681,0.03256705,2807.3,2807.0,0.239]
[1764602112879,0.03256705,2807.3,2807.1,0.239]
[1764602113291,0.76366251,2807.3,2807.1,0.239]
[1764602113483,0.03256705,2807.3,2807.1,0.239]
[1764602113678,0.76366251,2807.3,2807.1,0.239]
[1764602113889,0.002,2807.5,2807.1,0.3301]
[1764602114194,0.002,2807.5,2807.1,0.6973]
[1764602114403,0.002,2807.5,2807.2,0.405504]
[1764602114597,0.002,2807.5,2807.3,7.1242831]
[1764602114796,0.002,2807.5,2807.4,1.15848271]
[1764602114997,0.002,2807.5,2807.4,2.25127682]
[1764602115198,0.002,2807.5,2807.4,1.88407682]
[1764602115405,0.002,2807.5,2807.4,1.73729811]
[1764602115565,0.002,2807.5,2807.4,11.03925373]
[1764602115767,1.25686106,2809.1,2807.5,0.405504]
[1764602115997,0.73507431,2809.0,2808.1,0.405504]
[1764602116206,0.73580449,2808.9,2807.6,0.81669411]
[1764602116372,0.03256705,2808.6,2807.8,0.405504]
[1764602116570,0.73580449,2808.5,2808.0,0.72559411]
[1764602116775,1.22429401,2809.0,2808.1,0.405504]
[1764602117021,0.03256705,2808.6,2808.1,1.53766197]
[1764602117172,0.03256705,2808.4,2808.2,0.239]
[1764602117371,0.73698866,2808.3,2808.2,0.239]
[1764602117597,0.73698866,2808.3,2808.2,0.3672]
[1764602117901,0.73698866,2808.3,2808.0,0.72559411]
[1764602118084,0.03256705,2807.9,2807.7,3.56152863]
[1764602118285,0.74144972,2807.8,2807.7,3.56152863]
[1764602118686,0.74144972,2807.8,2807.7,4.16772863]
[1764602118907,0.74144972,2807.8,2807.7,3.92872863]
[1764602119203,0.74144972,2807.8,2807.7,6.05698489]
[1764602119496,0.04284,2807.9,2807.8,1.13109811]
[1764602119700,0.04284,2807.9,2807.8,1.49829811]
[1764602120076,0.04284,2807.9,2807.8,1.73729811]
[1764602120312,1.8808525,2808.6,2807.8,1.37009811]
[1764602120313,1.84828545,2808.2,2807.8,1.37009811]
[1764602120515,1.84828545,2808.7,2808.0,0.405504]
[1764602120723,1.84828545,2809.2,2808.2,0.72559411]
[1764602120877,1.84828545,2809.2,2808.3,0.239]
[1764602120878,0.03256705,2808.8,2808.3,0.239]
[1764602121078,3.55951438,2809.4,2808.3,0.239]
[1764602121079,1.84828545,2809.0,2808.4,0.405504]
[1764602121309,1.84828545,2808.6,2808.2,0.72559411]
[1764602121519,1.84828545,2808.6,2808.3,1.79246577]
[1764602121720,1.84828545,2808.6,2808.3,0.644504]
[1764602121920,1.8808525,2808.7,2808.3,0.644504]
[1764602122125,1.84828545,2808.7,2808.3,1.011704]
[1764602122312,2.43389339,2809.1,2808.0,3.56123855]
[1764602122313,2.43389339,2808.5,2808.0,3.56123855]
[1764602122511,0.03256705,2808.1,2808.0,3.56123855]
[1764602122686,2.43389339,2808.4,2808.0,7.36149211]
[1764602123026,0.03256705,2808.1,2808.0,3.56123855]
[1764602123229,0.03256705,2808.1,2808.0,3.80023855]
[1764602123587,1.9134581,2808.1,2808.0,3.80023855]
[1764602123992,0.03256705,2808.1,2808.0,3.80023855]
[1764602124406,1.88021778,2808.1,2808.0,3.80023855]
[1764602124599,1.91278483,2808.1,2808.0,3.80023855]
[1764602125225,1.91278483,2808.1,2807.7,7.12326814]
[1764602125401,1.91278483,2808.1,2808.0,0.239]
[1764602125597,0.03256705,2808.1,2808.0,0.239]
[1764602125795,6.81125485,2808.9,2808.0,0.239]
[1764602125796,1.88021778,2808.3,2808.0,0.239]
[1764602126000,0.03256705,2808.5,2807.9,0.405504]
[1764602126329,0.03256705,2808.2,2808.0,0.239]
[1764602126498,0.03256705,2808.2,2808.1,0.239]
[1764602126704,1.91278483,2808.4,2808.2,7.12199984]
[1764602126930,1.91278483,2808.4,2808.2,3.56099992]